[Event "*** Titled Tuesday Blitz"]
[Site "Chess.com"]
[Date "2020.05.19"]
[Round "4"]
[White "KanseiMigatte"]
[Black "vanea_03"]
[Result "0-1"]
[WhiteElo "2404"]
[BlackElo "2631"]
[TimeControl "180+1"]
[EndTime "12:42:28 PDT"]
[Termination "vanea_03 won by resignation"]

1. d4 {[%clk 0:03:00.9]} 1... Nf6 {[%clk 0:02:59.3]} 2. c4 {[%clk 0:02:59.2]}
2... e6 {[%clk 0:02:59.7]} 3. Nc3 {[%clk 0:02:54.9]} 3... Bb4 {[%clk 0:02:59.3]}
4. e3 {[%clk 0:02:47.2]} 4... O-O {[%clk 0:02:58.6]} 5. Ne2 {[%clk 0:02:34.3]}
5... c6 {[%clk 0:02:53.6]} 6. a3 {[%clk 0:02:33.8]} 6... Ba5 {[%clk 0:02:50]} 7.
g3 {[%clk 0:02:30.6]} 7... d5 {[%clk 0:02:49.2]} 8. cxd5 {[%clk 0:02:27.8]} 8...
exd5 {[%clk 0:02:47.9]} 9. Bg2 {[%clk 0:02:27.8]} 9... Re8 {[%clk 0:02:30.7]}
10. O-O {[%clk 0:02:26.4]} 10... Bf5 {[%clk 0:02:23.7]} 11. Qd2 {[%clk
0:02:14.4]} 11... Be4 {[%clk 0:02:14.3]} 12. f3 {[%clk 0:02:07.9]} 12... Bg6
{[%clk 0:02:14.2]} 13. b4 {[%clk 0:02:07.7]} 13... Bc7 {[%clk 0:02:11.7]} 14.
Bb2 {[%clk 0:02:06.9]} 14... Nbd7 {[%clk 0:02:11.2]} 15. Rae1 {[%clk 0:02:03.4]}
15... Nb6 {[%clk 0:02:11]} 16. Nf4 {[%clk 0:01:50]} 16... Nc4 {[%clk 0:02:07.8]}
17. Qc1 {[%clk 0:01:50]} 17... Bxf4 {[%clk 0:01:58.2]} 18. gxf4 {[%clk
0:01:45.2]} 18... b5 {[%clk 0:01:47.4]} 19. Rf2 {[%clk 0:01:27.9]} 19... a5
{[%clk 0:01:40.6]} 20. Bf1 {[%clk 0:01:13]} 20... axb4 {[%clk 0:01:34.3]} 21.
axb4 {[%clk 0:01:10.9]} 21... Qd6 {[%clk 0:01:25.7]} 22. Bxc4 {[%clk 0:01:07.9]}
22... bxc4 {[%clk 0:01:25.2]} 23. b5 {[%clk 0:00:59.9]} 23... cxb5 {[%clk
0:01:20.6]} 24. Nxb5 {[%clk 0:00:57.5]} 24... Qb6 {[%clk 0:01:19.7]} 25. Nc3
{[%clk 0:00:54.1]} 25... Bd3 {[%clk 0:01:12.8]} 26. Ba3 {[%clk 0:00:53.6]} 26...
Qb3 {[%clk 0:01:10.8]} 27. Bc5 {[%clk 0:00:49.2]} 27... Rab8 {[%clk 0:01:03.5]}
28. Bd6 {[%clk 0:00:43.2]} 28... Rb6 {[%clk 0:01:01.3]} 29. Be5 {[%clk
0:00:42.9]} 29... Rd8 {[%clk 0:00:53.7]} 30. e4 {[%clk 0:00:37.4]} 30... dxe4
{[%clk 0:00:52.2]} 31. fxe4 {[%clk 0:00:38.3]} 31... Nxe4 {[%clk 0:00:33.1]} 32.
Nxe4 {[%clk 0:00:35.1]} 32... Rg6+ {[%clk 0:00:33.7]} 33. Ng3 {[%clk 0:00:28.8]}
33... h5 {[%clk 0:00:22.8]} 34. f5 {[%clk 0:00:15.8]} 34... Rg4 {[%clk
0:00:22.3]} 35. h3 {[%clk 0:00:11.8]} 35... Rh4 {[%clk 0:00:20.9]} 36. Kh2
{[%clk 0:00:11.9]} 36... Qb7 {[%clk 0:00:15.9]} 37. Qe3 {[%clk 0:00:11.4]} 37...
f6 {[%clk 0:00:14.7]} 38. Bf4 {[%clk 0:00:10.6]} 38... Qf7 {[%clk 0:00:09.3]}
39. Qe6 {[%clk 0:00:10.7]} 39... c3 {[%clk 0:00:08.6]} 40. Qxf7+ {[%clk
0:00:10.3]} 40... Kxf7 {[%clk 0:00:09.5]} 41. Rd1 {[%clk 0:00:10.7]} 41... c2
{[%clk 0:00:08.6]} 42. Rc1 {[%clk 0:00:10.9]} 42... Rb8 {[%clk 0:00:07.9]} 43.
d5 {[%clk 0:00:09.4]} 43... Rb1 {[%clk 0:00:07.6]} 44. Bd2 {[%clk 0:00:09]}
44... Rd4 {[%clk 0:00:06.7]} 45. Be3 {[%clk 0:00:08.9]} 45... Rxd5 {[%clk
0:00:06.9]} 46. Rd2 {[%clk 0:00:09.3]} 46... Ke7 {[%clk 0:00:06]} 47. Rcxc2
{[%clk 0:00:07.9]} 47... Bxc2 {[%clk 0:00:05.3]} 48. Rxc2 {[%clk 0:00:08.8]}
48... Rbb5 {[%clk 0:00:05.1]} 49. Bf2 {[%clk 0:00:08.8]} 49... h4 {[%clk
0:00:05.4]} 50. Ne4 {[%clk 0:00:08.6]} 50... Rxf5 {[%clk 0:00:05.8]} 51. Re2
{[%clk 0:00:07.6]} 51... Rfe5 {[%clk 0:00:03.9]} 52. Kg2 {[%clk 0:00:08]} 52...
Kf7 {[%clk 0:00:03.5]} 53. Kf3 {[%clk 0:00:07.2]} 53... Kg6 {[%clk 0:00:03.9]}
54. Bd4 {[%clk 0:00:06.5]} 54... Rb3+ {[%clk 0:00:04.1]} 55. Re3 {[%clk
0:00:05.7]} 55... Rxe3+ {[%clk 0:00:03.9]} 56. Bxe3 {[%clk 0:00:06.6]} 56... Re8
{[%clk 0:00:03.9]} 57. Nf2 {[%clk 0:00:06.1]} 57... Kf5 {[%clk 0:00:03.9]} 58.
Nd3 {[%clk 0:00:06.1]} 58... g5 {[%clk 0:00:04.1]} 59. Nf2 {[%clk 0:00:05.8]}
59... Ra8 {[%clk 0:00:03.8]} 60. Ng4 {[%clk 0:00:05.9]} 60... Ra4 {[%clk
0:00:03.9]} 61. Nf2 {[%clk 0:00:05.8]} 61... Kg6 {[%clk 0:00:03.6]} 62. Ne4
{[%clk 0:00:05.6]} 62... Rc4 {[%clk 0:00:02.4]} 63. Nd6 {[%clk 0:00:05.5]} 63...
Rc2 {[%clk 0:00:02.7]} 64. Ne4 {[%clk 0:00:06]} 64... Rh2 {[%clk 0:00:03.1]} 65.
Nf2 {[%clk 0:00:06.2]} 65... f5 {[%clk 0:00:03.4]} 66. Bd2 {[%clk 0:00:06]}
66... Kh5 {[%clk 0:00:03.8]} 67. Bc3 {[%clk 0:00:06.2]} 67... Rxf2+ {[%clk
0:00:01.4]} 68. Kxf2 {[%clk 0:00:06]} 68... g4 {[%clk 0:00:02.3]} 69. hxg4+
{[%clk 0:00:06.8]} 69... fxg4 {[%clk 0:00:03.2]} 70. Kg2 {[%clk 0:00:07.7]}
70... Kg5 {[%clk 0:00:03.8]} 71. Kh1 {[%clk 0:00:08.6]} 71... h3 {[%clk
0:00:04.7]} 72. Bd4 {[%clk 0:00:09.2]} 72... Kf4 {[%clk 0:00:05.6]} 73. Bg1
{[%clk 0:00:09.8]} 73... Kf3 {[%clk 0:00:06.5]} 74. Ba7 {[%clk 0:00:10.3]} 74...
g3 {[%clk 0:00:07.2]} 75. Bb6 {[%clk 0:00:09.9]} 75... Kg4 {[%clk 0:00:07.8]}
76. Bc5 {[%clk 0:00:08.9]} 76... Kh4 {[%clk 0:00:08.7]} 77. Bb6 {[%clk
0:00:08.7]} 77... Kg4 {[%clk 0:00:09.6]} 78. Bc5 {[%clk 0:00:09]} 78... Kf3
{[%clk 0:00:09.4]} 79. Bb6 {[%clk 0:00:09.3]} 79... h2 {[%clk 0:00:10.2]} 80.
Bc5 {[%clk 0:00:08.5]} 80... Kg4 {[%clk 0:00:10.8]} 81. Bb6 {[%clk 0:00:08.1]}
81... Kh3 {[%clk 0:00:11]} 0-1

[Event "*** Titled Tuesday Blitz"]
[Site "Chess.com"]
[Date "2020.05.19"]
[Round "4"]
[White "szefru"]
[Black "kot60"]
[Result "0-1"]
[WhiteElo "2150"]
[BlackElo "2387"]
[TimeControl "180+1"]
[EndTime "12:42:33 PDT"]
[Termination "kot60 won by resignation"]

1. e4 {[%clk 0:03:00.9]} 1... e5 {[%clk 0:02:59.7]} 2. Nf3 {[%clk 0:02:59.1]}
2... Nc6 {[%clk 0:02:58.8]} 3. Bb5 {[%clk 0:02:58.8]} 3... a6 {[%clk 0:02:58.5]}
4. Ba4 {[%clk 0:02:58.5]} 4... d6 {[%clk 0:02:58.8]} 5. O-O {[%clk 0:02:57.7]}
5... Ne7 {[%clk 0:02:58.8]} 6. c3 {[%clk 0:02:56.4]} 6... Ng6 {[%clk 0:02:58.4]}
7. h3 {[%clk 0:02:55.8]} 7... Be7 {[%clk 0:02:58.3]} 8. d4 {[%clk 0:02:55.7]}
8... h6 {[%clk 0:02:58.7]} 9. d5 {[%clk 0:02:53.4]} 9... b5 {[%clk 0:02:57.1]}
10. dxc6 {[%clk 0:02:43.4]} 10... bxa4 {[%clk 0:02:57]} 11. Qxa4 {[%clk
0:02:43]} 11... O-O {[%clk 0:02:57.9]} 12. Be3 {[%clk 0:02:23.8]} 12... f5
{[%clk 0:02:58.1]} 13. exf5 {[%clk 0:02:20]} 13... Bxf5 {[%clk 0:02:59]} 14.
Nbd2 {[%clk 0:02:17.4]} 14... Bd3 {[%clk 0:02:57.9]} 15. Rfe1 {[%clk 0:02:03.9]}
15... Bb5 {[%clk 0:02:57.3]} 16. Qe4 {[%clk 0:01:50.9]} 16... Qe8 {[%clk
0:02:56.7]} 17. c4 {[%clk 0:01:29.5]} 17... Bxc6 {[%clk 0:02:54.7]} 18. Qc2
{[%clk 0:01:30.1]} 18... Qf7 {[%clk 0:02:34.9]} 19. b4 {[%clk 0:01:24.8]} 19...
Nf4 {[%clk 0:02:27.9]} 20. Bxf4 {[%clk 0:01:13.2]} 20... Qxf4 {[%clk 0:02:27.4]}
21. b5 {[%clk 0:01:04.1]} 21... Bb7 {[%clk 0:02:13.6]} 22. a4 {[%clk 0:00:57.1]}
22... Kh8 {[%clk 0:02:10.4]} 23. Qd3 {[%clk 0:00:47.4]} 23... Rad8 {[%clk
0:01:48.3]} 24. Qe3 {[%clk 0:00:44.5]} 24... Qf5 {[%clk 0:01:39.3]} 25. Qa7
{[%clk 0:00:42.7]} 25... Qc8 {[%clk 0:01:31.8]} 26. Rac1 {[%clk 0:00:35.1]}
26... Bg5 {[%clk 0:01:19.5]} 27. Rc2 {[%clk 0:00:35.2]} 27... Bxd2 {[%clk
0:01:17.5]} 28. Nxd2 {[%clk 0:00:33.7]} 28... Qf5 {[%clk 0:01:09.1]} 29. Rb2
{[%clk 0:00:22.7]} 29... Ba8 {[%clk 0:01:04.7]} 30. bxa6 {[%clk 0:00:20.6]}
30... Qg5 {[%clk 0:01:00.7]} 31. f3 {[%clk 0:00:20]} 31... d5 {[%clk 0:00:50.3]}
32. Qxc7 {[%clk 0:00:19.4]} 32... dxc4 {[%clk 0:00:47.3]} 33. Nxc4 {[%clk
0:00:19.2]} 33... e4 {[%clk 0:00:44.3]} 34. Qe5 {[%clk 0:00:17.3]} 34... Qh4
{[%clk 0:00:38.2]} 35. fxe4 {[%clk 0:00:15.1]} 35... Qxe1+ {[%clk 0:00:37.5]}
36. Kh2 {[%clk 0:00:14.9]} 36... Qxe4 {[%clk 0:00:36.1]} 37. Qxe4 {[%clk
0:00:14.3]} 37... Bxe4 {[%clk 0:00:36.5]} 38. Nb6 {[%clk 0:00:14.6]} 38... Ba8
{[%clk 0:00:31.1]} 39. a5 {[%clk 0:00:14.9]} 39... Rf6 {[%clk 0:00:29.9]} 40.
Rc2 {[%clk 0:00:14.6]} 40... Be4 {[%clk 0:00:28.2]} 41. Rc7 {[%clk 0:00:14.4]}
41... Rg6 {[%clk 0:00:27.4]} 42. g4 {[%clk 0:00:14]} 42... h5 {[%clk 0:00:24.8]}
43. Kg3 {[%clk 0:00:13.5]} 43... hxg4 {[%clk 0:00:22.9]} 44. hxg4 {[%clk
0:00:14.4]} 44... Bf5 {[%clk 0:00:23.3]} 45. Rc4 {[%clk 0:00:14.1]} 45... Be6
{[%clk 0:00:22.2]} 46. Re4 {[%clk 0:00:13.4]} 46... Bf5 {[%clk 0:00:15.3]} 47.
Rf4 {[%clk 0:00:12.6]} 47... Bd3 {[%clk 0:00:13.1]} 48. a7 {[%clk 0:00:12.3]}
48... Kh7 {[%clk 0:00:11.1]} 49. a8=Q {[%clk 0:00:12.1]} 49... Rxa8 {[%clk
0:00:11.5]} 50. Nxa8 {[%clk 0:00:13]} 50... Ra6 {[%clk 0:00:11.5]} 51. Ra4
{[%clk 0:00:12.5]} 51... Rxa8 {[%clk 0:00:11.2]} 52. Ra3 {[%clk 0:00:12.6]}
52... Ba6 {[%clk 0:00:10.4]} 53. Kf4 {[%clk 0:00:12.8]} 53... Rf8+ {[%clk
0:00:10.1]} 54. Kg5 {[%clk 0:00:13.2]} 54... Rf6 {[%clk 0:00:10.5]} 55. Rh3+
{[%clk 0:00:13.5]} 55... Rh6 {[%clk 0:00:10.3]} 56. Rb3 {[%clk 0:00:14.2]} 56...
Rg6+ {[%clk 0:00:10.2]} 57. Kf4 {[%clk 0:00:13.5]} 57... Bc8 {[%clk 0:00:10.6]}
58. g5 {[%clk 0:00:13.4]} 58... Ra6 {[%clk 0:00:09.9]} 59. Rb8 {[%clk
0:00:13.4]} 59... Be6 {[%clk 0:00:09.9]} 60. Rb5 {[%clk 0:00:13.3]} 60... g6
{[%clk 0:00:09]} 61. Re5 {[%clk 0:00:13.9]} 61... Bf5 {[%clk 0:00:08.7]} 62. Rc5
{[%clk 0:00:14.1]} 62... Kg8 {[%clk 0:00:08.9]} 63. Rd5 {[%clk 0:00:13.5]} 63...
Kf7 {[%clk 0:00:09.8]} 64. Rc5 {[%clk 0:00:13.5]} 64... Ke7 {[%clk 0:00:10.2]}
65. Re5+ {[%clk 0:00:13.5]} 65... Kd6 {[%clk 0:00:10.3]} 66. Rb5 {[%clk
0:00:13.7]} 66... Kc6 {[%clk 0:00:10]} 67. Re5 {[%clk 0:00:13.9]} 67... Ra7
{[%clk 0:00:09.2]} 68. Kg3 {[%clk 0:00:12.8]} 68... Kb7 {[%clk 0:00:09.1]} 69.
Rd5 {[%clk 0:00:11]} 69... Ka6 {[%clk 0:00:09.5]} 70. Kf4 {[%clk 0:00:11]} 70...
Rb7 {[%clk 0:00:10]} 71. Ke5 {[%clk 0:00:10.2]} 71... Rb5 {[%clk 0:00:10]} 72.
Rxb5 {[%clk 0:00:09.3]} 72... Kxb5 {[%clk 0:00:10.9]} 73. a6 {[%clk 0:00:09.6]}
73... Kxa6 {[%clk 0:00:11.1]} 74. Kf4 {[%clk 0:00:10.3]} 74... Kb6 {[%clk
0:00:12]} 75. Ke5 {[%clk 0:00:10.8]} 75... Kc6 {[%clk 0:00:12.9]} 76. Kf4 {[%clk
0:00:11.5]} 76... Kc5 {[%clk 0:00:13.8]} 77. Ke5 {[%clk 0:00:11.8]} 77... Kc4
{[%clk 0:00:13]} 78. Kf4 {[%clk 0:00:12.2]} 78... Kd3 {[%clk 0:00:13.9]} 79. Ke5
{[%clk 0:00:12.4]} 79... Ke2 {[%clk 0:00:14.8]} 80. Kf4 {[%clk 0:00:12.8]} 80...
Kf2 {[%clk 0:00:15.7]} 81. Ke5 {[%clk 0:00:12.6]} 81... Kg2 {[%clk 0:00:16.6]}
82. Kf4 {[%clk 0:00:12.7]} 82... Kh3 {[%clk 0:00:17.5]} 83. Ke5 {[%clk
0:00:12.6]} 83... Kg4 {[%clk 0:00:18.4]} 84. Kf6 {[%clk 0:00:12.7]} 84... Kh4
{[%clk 0:00:19.3]} 85. Ke5 {[%clk 0:00:12.8]} 85... Kxg5 {[%clk 0:00:20.2]} 0-1

[Event "*** Titled Tuesday Blitz"]
[Site "Chess.com"]
[Date "2020.05.19"]
[Round "4"]
[White "Vesper2018"]
[Black "Olga_Girya"]
[Result "0-1"]
[WhiteElo "2243"]
[BlackElo "2433"]
[TimeControl "180+1"]
[EndTime "12:42:46 PDT"]
[Termination "Olga_Girya won by resignation"]

1. e4 {[%clk 0:02:59.3]} 1... c6 {[%clk 0:02:59.7]} 2. d4 {[%clk 0:02:59.1]}
2... d5 {[%clk 0:03:00.3]} 3. e5 {[%clk 0:02:59.5]} 3... Bf5 {[%clk 0:02:59.3]}
4. Nf3 {[%clk 0:02:59.3]} 4... e6 {[%clk 0:02:58.9]} 5. Be2 {[%clk 0:02:59.4]}
5... Ne7 {[%clk 0:02:54.5]} 6. O-O {[%clk 0:02:57.8]} 6... Bg6 {[%clk 0:02:53]}
7. c3 {[%clk 0:02:54.9]} 7... h6 {[%clk 0:02:51.8]} 8. Nbd2 {[%clk 0:02:53]}
8... a5 {[%clk 0:02:50.4]} 9. Re1 {[%clk 0:02:50]} 9... Nd7 {[%clk 0:02:43.9]}
10. Nf1 {[%clk 0:02:48.8]} 10... Nf5 {[%clk 0:02:42.9]} 11. Bd3 {[%clk
0:02:47.3]} 11... Be7 {[%clk 0:02:42.2]} 12. g4 {[%clk 0:02:36]} 12... Nh4
{[%clk 0:02:40.3]} 13. Nxh4 {[%clk 0:02:34.6]} 13... Bxh4 {[%clk 0:02:40.2]} 14.
Bxg6 {[%clk 0:02:31]} 14... fxg6 {[%clk 0:02:41.1]} 15. Qd3 {[%clk 0:02:31.2]}
15... O-O {[%clk 0:02:38.6]} 16. Ng3 {[%clk 0:02:30.2]} 16... g5 {[%clk
0:02:20.9]} 17. Be3 {[%clk 0:02:17.8]} 17... Rf7 {[%clk 0:02:16.3]} 18. Kg2
{[%clk 0:02:17.5]} 18... Qe7 {[%clk 0:01:54.5]} 19. Rf1 {[%clk 0:02:16.1]} 19...
Raf8 {[%clk 0:01:54]} 20. Qg6 {[%clk 0:02:09]} 20... Qe8 {[%clk 0:01:49.2]} 21.
Qd3 {[%clk 0:02:05.5]} 21... Rf3 {[%clk 0:01:39.6]} 22. Qe2 {[%clk 0:01:59.5]}
22... Qf7 {[%clk 0:01:35.3]} 23. Rad1 {[%clk 0:01:47.9]} 23... Nb6 {[%clk
0:01:32.3]} 24. b3 {[%clk 0:01:47.1]} 24... Nc8 {[%clk 0:01:32.1]} 25. Nf5
{[%clk 0:01:35.8]} 25... Rxf5 {[%clk 0:01:12.2]} 26. gxf5 {[%clk 0:01:35.5]}
26... Qxf5 {[%clk 0:01:11.3]} 27. f4 {[%clk 0:01:29.4]} 27... g4 {[%clk
0:01:06.7]} 28. Qd3 {[%clk 0:01:26.2]} 28... Qh5 {[%clk 0:01:02.6]} 29. c4
{[%clk 0:01:17.3]} 29... Ne7 {[%clk 0:01:01.9]} 30. Bc1 {[%clk 0:01:14.7]} 30...
Nf5 {[%clk 0:01:01.2]} 31. Qe2 {[%clk 0:01:03.6]} 31... Be7 {[%clk 0:00:57.7]}
32. Rd3 {[%clk 0:01:03.3]} 32... Rd8 {[%clk 0:00:48.5]} 33. c5 {[%clk
0:00:47.3]} 33... Rf8 {[%clk 0:00:46.7]} 34. Kg1 {[%clk 0:00:44.2]} 34... Qg6
{[%clk 0:00:41.4]} 35. Rf2 {[%clk 0:00:37.5]} 35... h5 {[%clk 0:00:34.9]} 36.
Bd2 {[%clk 0:00:29.9]} 36... Bd8 {[%clk 0:00:34.5]} 37. Bc1 {[%clk 0:00:29.8]}
37... b6 {[%clk 0:00:31.3]} 38. Ba3 {[%clk 0:00:27.6]} 38... b5 {[%clk
0:00:30.6]} 39. Bc1 {[%clk 0:00:27.3]} 39... Kf7 {[%clk 0:00:24.7]} 40. Bd2
{[%clk 0:00:27.3]} 40... Ke8 {[%clk 0:00:24.6]} 41. Be1 {[%clk 0:00:26.9]} 41...
Nh4 {[%clk 0:00:19.5]} 42. Rg3 {[%clk 0:00:22.5]} 42... Qb1 {[%clk 0:00:15.3]}
43. h3 {[%clk 0:00:19.9]} 43... Nf5 {[%clk 0:00:09.8]} 44. Rd3 {[%clk 0:00:18]}
44... g3 {[%clk 0:00:07.8]} 45. Rg2 {[%clk 0:00:17.9]} 45... h4 {[%clk
0:00:07.6]} 46. Rd1 {[%clk 0:00:14.8]} 46... Qe4 {[%clk 0:00:07.6]} 47. Qxe4
{[%clk 0:00:15]} 47... dxe4 {[%clk 0:00:08]} 48. Re2 {[%clk 0:00:15.2]} 48...
Kf7 {[%clk 0:00:06.7]} 49. Rxe4 {[%clk 0:00:14.6]} 49... Bc7 {[%clk 0:00:07]}
50. Kg2 {[%clk 0:00:14.3]} 50... Rd8 {[%clk 0:00:07.5]} 51. Bc3 {[%clk
0:00:13.6]} 51... Rd5 {[%clk 0:00:07.5]} 52. Kf3 {[%clk 0:00:13.2]} 52... Kg6
{[%clk 0:00:05.8]} 53. Re2 {[%clk 0:00:12.8]} 53... Kh5 {[%clk 0:00:06]} 54. Ke4
{[%clk 0:00:12.8]} 54... Ne7 {[%clk 0:00:05.2]} 55. a3 {[%clk 0:00:09.7]} 55...
Nf5 {[%clk 0:00:05.2]} 56. Red2 {[%clk 0:00:09]} 56... g6 {[%clk 0:00:04.4]} 57.
Re2 {[%clk 0:00:08.9]} 57... Bd8 {[%clk 0:00:04.7]} 58. Red2 {[%clk 0:00:08.9]}
58... Kh6 {[%clk 0:00:05]} 59. Re2 {[%clk 0:00:09]} 59... Rd7 {[%clk 0:00:05.4]}
60. Red2 {[%clk 0:00:08.6]} 60... Kh5 {[%clk 0:00:05.8]} 61. Re2 {[%clk
0:00:08.7]} 61... Ra7 {[%clk 0:00:05.7]} 62. Bb2 {[%clk 0:00:07.3]} 62... Ne7
{[%clk 0:00:05.7]} 63. Ree1 {[%clk 0:00:05.8]} 63... Nd5 {[%clk 0:00:06.3]} 64.
Rf1 {[%clk 0:00:06]} 64... Rf7 {[%clk 0:00:06.8]} 65. Rd2 {[%clk 0:00:05.9]}
65... Rf5 {[%clk 0:00:07.4]} 66. Rdd1 {[%clk 0:00:05.5]} 66... Be7 {[%clk
0:00:07.5]} 67. Rd3 {[%clk 0:00:05.5]} 67... Bg5 {[%clk 0:00:07.7]} 68. Rdf3
{[%clk 0:00:04.6]} 68... Bxf4 {[%clk 0:00:06.8]} 69. Rxf4 {[%clk 0:00:04.8]}
69... Rxf4+ {[%clk 0:00:06.3]} 70. Rxf4 {[%clk 0:00:04.2]} 70... Nxf4 {[%clk
0:00:05.5]} 71. Kf3 {[%clk 0:00:04.1]} 71... g2 {[%clk 0:00:04.5]} 72. Kf2
{[%clk 0:00:04.1]} 72... Nd3+ {[%clk 0:00:05.1]} 73. Kxg2 {[%clk 0:00:04.3]}
73... Nxb2 {[%clk 0:00:06]} 74. d5 {[%clk 0:00:04.7]} 74... Nd3 {[%clk
0:00:02.6]} 75. dxc6 {[%clk 0:00:03.9]} 75... Nf4+ {[%clk 0:00:01.5]} 76. Kf3
{[%clk 0:00:03.5]} 76... Nd5 {[%clk 0:00:02.4]} 77. Ke4 {[%clk 0:00:03.2]} 77...
g5 {[%clk 0:00:02.8]} 78. Kf3 {[%clk 0:00:02.7]} 78... g4+ {[%clk 0:00:03.2]}
79. hxg4+ {[%clk 0:00:02.5]} 79... Kg5 {[%clk 0:00:04.1]} 80. Kg2 {[%clk
0:00:02]} 80... Kxg4 {[%clk 0:00:04.1]} 81. Kh2 {[%clk 0:00:02.1]} 81... Nc7
{[%clk 0:00:04.6]} 82. Kg2 {[%clk 0:00:01.9]} 82... Kf4 {[%clk 0:00:05.1]} 83.
Kh3 {[%clk 0:00:01.8]} 83... Kxe5 {[%clk 0:00:05.6]} 84. Kxh4 {[%clk 0:00:02.2]}
84... Kd5 {[%clk 0:00:06.5]} 85. Kg5 {[%clk 0:00:02.6]} 85... Kxc6 {[%clk
0:00:06.7]} 0-1